[Event "Lindores Abbey Chess Stars"]
[Site "Lindores Abbey"]
[Date "2019.05.25"]
[Round "2.1"]
[White "Anand, Viswanathan"]
[Black "Ding, Liren"]
[Result "1/2-1/2"]
[ECO "C84"]
[WhiteElo "2774"]
[BlackElo "2805"]
[Annotator "RC"]
[PlyCount "79"]
[EventDate "2019.05.26"]
[EventType "tourn"]
[EventCountry "SCO"]
[SourceTitle "playchess.com"]
[Source "ChessBase"]
[SourceQuality "1"]
[TimeControl "1500+10"]

1. e4 {[%emt 0:00:00]} e5 {[%emt 0:00:00]} 2. Nf3 {[%emt 0:00:00]} Nc6 {[%emt 0:00:00]} 3. Bb5 {[%emt 0:00:00]} a6 {[%emt 0:00:00]} 4. Ba4 {[%emt 0:00:05]} Nf6 {[%emt 0:00:01]} 5. O-O {[%emt 0:00:03]} Be7 {[%emt 0:00:01]} 6. d3 {[%emt 0:00:11]} b5 {[%emt 0:00:02]} 7. Bb3 {[%emt 0:00:01]} d6 {[%emt 0:00:02]} 8. c3 {[%emt 0:00:18]} Na5 {[%emt 0:00:32]} 9. Bc2 {[%emt 0:00:03]} c5 {[%emt 0:00:01]} 10. a4 {[%emt 0:00:29]} b4 {[%emt 0:00:47]} 11. cxb4 {[%emt 0:00:10]} cxb4 {[%emt 0:00:02]} 12. d4 {[%emt 0:00:02]} exd4 {[%emt 0:00:41]} 13. Nxd4 {[%emt 0:00:07]} O-O {[%emt 0:00:02]} 14. Nd2 {[%emt 0:00:08]} Re8 {[%emt 0:00:08]} 15. Re1 {[%emt 0:00:26]} Bb7 {[%emt 0:00:07]} 16. N2f3 {[%emt 0:01:12]} Rc8 {[%emt 0:00:37]} 17. Bd3 {[%emt 0:01:42]} Bf8 {[%emt 0:01:43]} 18. Bg5 {[%emt 0:01:02]} h6 {[%emt 0:00:01]} 19. Bxf6 {[%emt 0:00:04]} Qxf6 {[%emt 0:00:01]} 20. Qd2 {[%emt 0:00:06]} Qd8 {[%emt 0:02:17]} 21. h4 {[%emt 0:01:39]} Qb6 {[%emt 0:00:18]} 22. Rad1 {[%emt 0:00:25]} Nc4 {[%emt 0:00:47]} 23. Qe2 {[%emt 0:00:14]} Ne5 {[%emt 0:01:02]} 24. Nxe5 {[%emt 0:01:05]} Rxe5 {[%emt 0:00:37]} 25. Nf3 {[%emt 0:01:25]} Re6 {[%emt 0:00:46]} 26. Qe3 {[%emt 0:00:16]} Qxe3 {[%emt 0:01:38]} 27. Rxe3 {[%emt 0:00:04]} g6 {[%emt 0:00:55]} 28. Nd2 {[%emt 0:03:03]} Bg7 {[%emt 0:00:54]} 29. Bc4 {[%emt 0:01:08]} d5 {[%emt 0:02:02]} 30. exd5 {[%emt 0:01:36]} Rxe3 {[%emt 0:00:02]} 31. fxe3 {[%emt 0:00:02]} Bxb2 {[%emt 0:00:03]} 32. d6 {[%emt 0:01:31]} Bf6 {[%emt 0:04:08]} 33. d7 {[%emt 0:01:41]} Rc7 {[%emt 0:01:10]} 34. Rf1 {[%emt 0:00:41]} Rxd7 {[%emt 0:00:40]} 35. Rxf6 {[%emt 0:00:48]} Rxd2 {[%emt 0:00:02]} 36. Rxf7 {[%emt 0:00:58]} Rxg2+ {[%emt 0:01:43]} 37. Kf1 {[%emt 0:00:04]} Rc2 {[%emt 0:00:01]} 38. Rf4+ {[%emt 0:00:23]} Kg7 {[%emt 0:00:02]} 39. Rf7+ {[%emt 0:00:02]} Kg8 {[%emt 0:00:02]} 40. Rf4+ {[%emt 0:00:10]} 1/2-1/2

[Event "Lindores Abbey Chess Stars"]
[Site "Lindores Abbey"]
[Date "2019.05.25"]
[Round "2.2"]
[White "Karjakin, Sergey"]
[Black "Carlsen, Magnus"]
[Result "1/2-1/2"]
[ECO "E94"]
[WhiteElo "2752"]
[BlackElo "2861"]
[Annotator "ChessBase"]
[PlyCount "79"]
[EventDate "2019.05.26"]
[EventType "tourn"]
[EventCountry "SCO"]
[SourceTitle "playchess.com"]
[Source "ChessBase"]
[SourceQuality "1"]
[TimeControl "1500+10"]

1. d4 {[%emt 0:00:00]} Nf6 {[%emt 0:00:00]} 2. c4 {[%emt 0:00:10]} g6 {[%emt 0:00:10]} 3. Nc3 {[%emt 0:00:00]} Bg7 {[%emt 0:00:00]} 4. e4 {[%emt 0:00:00]} d6 {[%emt 0:00:00]} 5. Nf3 {[%emt 0:00:00]} O-O {[%emt 0:00:00]} 6. Be2 {[%emt 0:00:00]} e5 {[%emt 0:00:02]} 7. O-O {[%emt 0:00:03]} Na6 {[%emt 0:00:16]} 8. Re1 {[%emt 0:00:40]} c6 {[%emt 0:01:12]} 9. d5 {[%emt 0:00:48]} Nc5 {[%emt 0:00:44]} 10. Qc2 {[%emt 0:02:53]} Qb6 {[%emt 0:03:33]} 11. h3 {[%emt 0:01:29]} cxd5 {[%emt 0:01:26]} 12. cxd5 {[%emt 0:00:05]} Bd7 {[%emt 0:00:37]} 13. Be3 {[%emt 0:00:14]} Rfc8 {[%emt 0:00:48]} 14. Rac1 {[%emt 0:01:07]} Qd8 {[%emt 0:01:31]} 15. Qb1 {[%emt 0:00:58]} a5 {[%emt 0:04:34]} 16. Nd2 {[%emt 0:00:07]} Nh5 {[%emt 0:00:04]} 17. Nc4 {[%emt 0:03:06]} Bf8 {[%emt 0:00:34]} 18. Bg4 {[%emt 0:03:26]} Bxg4 {[%emt 0:00:30]} 19. hxg4 {[%emt 0:00:02]} Nf4 {[%emt 0:00:02]} 20. Bxf4 {[%emt 0:03:48]} exf4 {[%emt 0:00:01]} 21. e5 {[%emt 0:00:01]} dxe5 {[%emt 0:02:02]} 22. Nxe5 {[%emt 0:00:02]} Bg7 {[%emt 0:00:05]} 23. Nf3 {[%emt 0:02:13]} Bxc3 {[%emt 0:00:58]} 24. Rxc3 {[%emt 0:00:01]} Qxd5 {[%emt 0:00:02]} 25. Re5 {[%emt 0:00:12]} Qd6 {[%emt 0:00:05]} 26. Qc1 {[%emt 0:00:07]} b6 {[%emt 0:00:11]} 27. Qxf4 {[%emt 0:00:14]} Ne6 {[%emt 0:02:01]} 28. Qe4 {[%emt 0:00:20]} Rab8 {[%emt 0:00:35]} 29. Rd5 {[%emt 0:01:26]} Qf4 {[%emt 0:00:10]} 30. Qxf4 {[%emt 0:00:49]} Nxf4 {[%emt 0:00:02]} 31. Rxc8+ {[%emt 0:00:43]} Rxc8 {[%emt 0:00:03]} 32. Rd6 {[%emt 0:01:21]} b5 {[%emt 0:01:31]} 33. g3 {[%emt 0:00:35]} Rc1+ {[%emt 0:00:02]} 34. Kh2 {[%emt 0:00:01]} Ne6 {[%emt 0:00:04]} 35. Kg2 {[%emt 0:00:13]} Rc2 {[%emt 0:00:34]} 36. Rd2 {[%emt 0:00:05]} Rc5 {[%emt 0:00:02]} 37. a3 {[%emt 0:01:50]} a4 {[%emt 0:01:18]} 38. Nd4 {[%emt 0:01:02]} Rd5 {[%emt 0:02:50]} 39. Nf3 {[%emt 0:00:01]} Rc5 {[%emt 0:00:31]} 40. Nd4 {[%emt 0:00:02]} 1/2-1/2

[Event "Lindores Abbey Chess Stars"]
[Site "Lindores Abbey"]
[Date "2019.05.25"]
[Round "3.1"]
[White "Carlsen, Magnus"]
[Black "Anand, Viswanathan"]
[Result "1-0"]
[ECO "E48"]
[WhiteElo "2861"]
[BlackElo "2774"]
[Annotator "ChessBase"]
[PlyCount "61"]
[EventDate "2019.05.26"]
[EventType "tourn"]
[EventCountry "SCO"]
[SourceTitle "playchess.com"]
[Source "ChessBase"]
[SourceQuality "1"]
[TimeControl "1500+10"]

1. d4 {[%emt 0:00:00]} Nf6 {[%emt 0:00:00]} 2. c4 {[%emt 0:00:00]} e6 {[%emt 0:00:00]} 3. Nc3 {[%emt 0:00:00]} Bb4 {[%emt 0:00:00]} 4. e3 {[%emt 0:00:18]} O-O {[%emt 0:00:05]} 5. Bd3 {[%emt 0:00:03]} d5 {[%emt 0:00:19]} 6. cxd5 {[%emt 0:00:04]} exd5 {[%emt 0:00:04]} 7. Nge2 {[%emt 0:00:04]} Re8 {[%emt 0:01:09]} 8. Bd2 {[%emt 0:00:05]} b6 {[%emt 0:02:01]} 9. O-O {[%emt 0:02:01]} Bd6 {[%emt 0:00:42]} 10. Rc1 {[%emt 0:02:36]} c5 {[%emt 0:00:38]} 11. Nb5 {[%emt 0:01:30]} Bf8 {[%emt 0:01:05]} 12. f3 {[%emt 0:05:25]} Nc6 {[%emt 0:04:08]} 13. Kh1 {[%emt 0:00:09]} Bb7 {[%emt 0:00:53]} 14. a3 {[%emt 0:00:35]} g6 {[%emt 0:01:13]} 15. Bb1 {[%emt 0:04:37]} Rc8 {[%emt 0:01:43]} 16. Ba2 {[%emt 0:02:08]} a6 {[%emt 0:01:39]} 17. Nbc3 {[%emt 0:00:02]} Bg7 {[%emt 0:02:15]} 18. dxc5 {[%emt 0:00:19]} bxc5 {[%emt 0:00:04]} 19. Be1 {[%emt 0:01:36]} d4 {[%emt 0:01:10]} 20. Na4 {[%emt 0:00:13]} Nd7 {[%emt 0:01:41]} 21. Bxf7+ {[%emt 0:01:10]} Kxf7 {[%emt 0:00:03]} 22. Qb3+ {[%emt 0:00:02]} Kf8 {[%emt 0:00:51]} 23. Qxb7 {[%emt 0:00:02]} Rxe3 {[%emt 0:00:06]} 24. Ng3 {[%emt 0:01:14]} Nce5 {[%emt 0:00:40]} 25. Bd2 {[%emt 0:00:57]} Rd3 {[%emt 0:01:07]} 26. Ne4 {[%emt 0:00:39]} Rb8 {[%emt 0:01:14]} 27. Qd5 {[%emt 0:00:29]} Rxd2 {[%emt 0:00:30]} 28. Nxd2 {[%emt 0:00:04]} Nd3 {[%emt 0:00:06]} 29. Rc2 {[%emt 0:00:31]} Qe7 {[%emt 0:01:07]} 30. Ne4 {[%emt 0:00:08]} Nf4 {[%emt 0:00:06]} 31. Qc4 {[%emt 0:00:08]} 1-0

[Event "Lindores Abbey Chess Stars"]
[Site "Lindores Abbey"]
[Date "2019.05.26"]
[Round "4.2"]
[White "Karjakin, Sergey"]
[Black "Ding, Liren"]
[Result "1/2-1/2"]
[ECO "C47"]
[WhiteElo "2752"]
[BlackElo "2805"]
[Annotator "ChessBase"]
[PlyCount "77"]
[EventDate "2019.05.26"]
[EventType "tourn"]
[EventCountry "SCO"]
[SourceTitle "playchess.com"]
[Source "ChessBase"]
[SourceQuality "1"]
[TimeControl "1500+10"]

1. e4 {[%emt 0:00:00]} e5 {[%emt 0:00:00]} 2. Nf3 {[%emt 0:00:00]} Nc6 {[%emt 0:00:00]} 3. Nc3 {[%emt 0:00:00]} Nf6 {[%emt 0:00:00]} 4. d4 {[%emt 0:00:00]} exd4 {[%emt 0:00:00]} 5. Nxd4 {[%emt 0:00:00]} Bb4 {[%emt 0:00:01]} 6. Nxc6 {[%emt 0:00:00]} bxc6 {[%emt 0:00:01]} 7. Bd3 {[%emt 0:00:01]} d5 {[%emt 0:00:02]} 8. Bd2 {[%emt 0:00:03]} O-O {[%emt 0:02:18]} 9. O-O {[%emt 0:00:02]} Re8 {[%emt 0:00:10]} 10. Nxd5 {[%emt 0:00:23]} Nxd5 {[%emt 0:00:48]} 11. exd5 {[%emt 0:00:02]} Bxd2 {[%emt 0:00:02]} 12. Qxd2 {[%emt 0:00:02]} cxd5 {[%emt 0:00:06]} 13. b4 {[%emt 0:00:08]} Qd6 {[%emt 0:00:48]} 14. Rfd1 {[%emt 0:00:03]} Bg4 {[%emt 0:01:24]} 15. Re1 {[%emt 0:00:02]} Bh5 {[%emt 0:03:50]} 16. c3 {[%emt 0:05:15]} Bg6 {[%emt 0:00:23]} 17. Bf1 {[%emt 0:00:12]} c5 {[%emt 0:00:24]} 18. Rxe8+ {[%emt 0:00:58]} Rxe8 {[%emt 0:00:01]} 19. Rd1 {[%emt 0:00:03]} Rd8 {[%emt 0:00:30]} 20. a3 {[%emt 0:03:20]} d4 {[%emt 0:04:31]} 21. Qg5 {[%emt 0:05:52]} h6 {[%emt 0:00:01]} 22. Qxc5 {[%emt 0:00:16]} Qxc5 {[%emt 0:00:01]} 23. bxc5 {[%emt 0:00:01]} d3 {[%emt 0:00:01]} 24. f4 {[%emt 0:03:10]} Rc8 {[%emt 0:00:12]} 25. g4 {[%emt 0:00:17]} Be4 {[%emt 0:00:02]} 26. Bxd3 {[%emt 0:01:14]} Bxd3 {[%emt 0:00:01]} 27. Rxd3 {[%emt 0:00:01]} Rxc5 {[%emt 0:00:01]} 28. Rd8+ {[%emt 0:00:19]} Kh7 {[%emt 0:00:01]} 29. Rd7 {[%emt 0:00:01]} a5 {[%emt 0:01:53]} 30. Rxf7 {[%emt 0:00:04]} Rxc3 {[%emt 0:00:01]} 31. f5 {[%emt 0:00:04]} Kg8 {[%emt 0:00:18]} 32. Ra7 {[%emt 0:00:02]} Rxa3 {[%emt 0:00:02]} 33. Kg2 {[%emt 0:00:05]} a4 {[%emt 0:00:38]} 34. h3 {[%emt 0:00:15]} Kf8 {[%emt 0:00:11]} 35. h4 {[%emt 0:00:10]} Ra1 {[%emt 0:00:57]} 36. g5 {[%emt 0:00:21]} hxg5 {[%emt 0:00:03]} 37. hxg5 {[%emt 0:00:02]} a3 {[%emt 0:00:03]} 38. f6 {[%emt 0:00:18]} gxf6 {[%emt 0:00:03]} 39. gxf6 {[%emt 0:00:10]} 1/2-1/2

[Event "Lindores Abbey Chess Stars"]
[Site "Lindores Abbey"]
[Date "2019.05.26"]
[Round "5.1"]
[White "Ding, Liren"]
[Black "Anand, Viswanathan"]
[Result "0-1"]
[ECO "A20"]
[WhiteElo "2805"]
[BlackElo "2774"]
[Annotator "ChessBase"]
[PlyCount "110"]
[EventDate "2019.05.26"]
[EventType "tourn"]
[EventCountry "SCO"]
[SourceTitle "playchess.com"]
[Source "ChessBase"]
[SourceQuality "1"]
[TimeControl "1500+10"]

1. c4 {[%emt 0:00:00]} e5 {[%emt 0:00:00]} 2. g3 {[%emt 0:00:00]} Nf6 {[%emt 0:00:01]} 3. Bg2 {[%emt 0:00:00]} c6 {[%emt 0:00:06]} 4. Nf3 {[%emt 0:00:00]} e4 {[%emt 0:00:31]} 5. Nd4 {[%emt 0:00:00]} d5 {[%emt 0:00:24]} 6. d3 {[%emt 0:00:00]} Bc5 {[%emt 0:02:42]} 7. Nb3 {[%emt 0:00:18]} Bb6 {[%emt 0:00:22]} 8. cxd5 {[%emt 0:00:45]} Qxd5 {[%emt 0:00:15]} 9. O-O {[%emt 0:02:11]} Qf5 {[%emt 0:01:57]} 10. Nc3 {[%emt 0:02:46]} exd3 {[%emt 0:00:03]} 11. e4 {[%emt 0:00:04]} Qh5 {[%emt 0:00:03]} 12. Qxh5 {[%emt 0:00:42]} Nxh5 {[%emt 0:00:11]} 13. Rd1 {[%emt 0:00:02]} Nf6 {[%emt 0:01:03]} 14. Na4 {[%emt 0:00:16]} Na6 {[%emt 0:01:48]} 15. Rxd3 {[%emt 0:00:17]} Be6 {[%emt 0:00:13]} 16. Nxb6 {[%emt 0:04:54]} axb6 {[%emt 0:00:04]} 17. a3 {[%emt 0:00:06]} c5 {[%emt 0:04:05]} 18. Nd2 {[%emt 0:01:33]} Nb4 {[%emt 0:01:20]} 19. Rc3 {[%emt 0:00:03]} Na2 {[%emt 0:01:59]} 20. Rxa2 {[%emt 0:00:54]} Bxa2 {[%emt 0:00:02]} 21. b3 {[%emt 0:00:01]} O-O-O {[%emt 0:01:53]} 22. e5 {[%emt 0:00:01]} Ne8 {[%emt 0:01:23]} 23. Bh3+ {[%emt 0:00:43]} Kc7 {[%emt 0:01:05]} 24. Bf1 {[%emt 0:04:16]} f6 {[%emt 0:01:23]} 25. e6 {[%emt 0:00:09]} Nd6 {[%emt 0:00:35]} 26. Rc2 {[%emt 0:00:12]} Bxb3 {[%emt 0:00:02]} 27. Nxb3 {[%emt 0:00:01]} Rhe8 {[%emt 0:00:03]} 28. a4 {[%emt 0:00:50]} Rxe6 {[%emt 0:00:51]} 29. a5 {[%emt 0:00:02]} c4 {[%emt 0:00:44]} 30. Bxc4 {[%emt 0:01:37]} Nxc4 {[%emt 0:00:06]} 31. Rxc4+ {[%emt 0:00:01]} Rc6 {[%emt 0:00:25]} 32. Bf4+ {[%emt 0:00:09]} Kd7 {[%emt 0:00:03]} 33. Rb4 {[%emt 0:00:18]} bxa5 {[%emt 0:00:47]} 34. Nxa5 {[%emt 0:00:44]} Ra6 {[%emt 0:00:03]} 35. Rxb7+ {[%emt 0:00:18]} Ke8 {[%emt 0:00:01]} 36. Nb3 {[%emt 0:00:51]} Kf8 {[%emt 0:00:04]} 37. h4 {[%emt 0:00:23]} Re8 {[%emt 0:00:28]} 38. Nd4 {[%emt 0:00:20]} Re7 {[%emt 0:00:06]} 39. Rb8+ {[%emt 0:00:03]} Kf7 {[%emt 0:00:21]} 40. Nf5 {[%emt 0:00:17]} Rd7 {[%emt 0:00:03]} 41. h5 {[%emt 0:00:27]} Ra5 {[%emt 0:00:08]} 42. Nd6+ {[%emt 0:04:02]} Ke6 {[%emt 0:00:03]} 43. Nb5 {[%emt 0:00:04]} Kf5 {[%emt 0:00:01]} 44. Kg2 {[%emt 0:00:21]} Kg4 {[%emt 0:00:03]} 45. h6 {[%emt 0:00:10]} g5 {[%emt 0:00:01]} 46. Be3 {[%emt 0:00:05]} Kh5 {[%emt 0:00:02]} 47. Rb6 {[%emt 0:00:11]} Kg6 {[%emt 0:00:33]} 48. g4 {[%emt 0:01:04]} Ra4 {[%emt 0:00:06]} 49. Kg3 {[%emt 0:00:04]} Rb4 {[%emt 0:00:02]} 50. Kf3 {[%emt 0:00:31]} Rd3 {[%emt 0:00:35]} 51. Rb8 {[%emt 0:00:07]} Kxh6 {[%emt 0:00:12]} 52. Rb6 {[%emt 0:00:13]} Kg6 {[%emt 0:00:03]} 53. Rb8 {[%emt 0:00:13]} Rdb3 {[%emt 0:00:02]} 54. Rg8+ {[%emt 0:00:01]} Kf7 {[%emt 0:00:01]} 55. Rh8 {[%emt 0:00:11]} Kg7 {[%emt 0:00:01]} 0-1